bitfinex/quotes_ETHUSD_20220311
["timestamp","ask_amount","ask_price","bid_price","bid_amount"]
[1646986224847,5.5,2610.8,2609.6,0.40003472]
[1646986225050,5.5,2610.8,2609.5,0.15003472]
[1646986225051,0.95774,2610.2,2609.5,0.15003472]
[1646986225244,0.95774,2610.2,2609.2,0.9025094]
[1646986225245,0.99398188,2609.7,2609.2,0.9025094]
[1646986225493,0.462,2609.6,2609.2,0.9025094]
[1646986225890,0.462,2609.6,2609.0,1.0]
[1646986226096,0.462,2609.6,2609.0,1.00379766]
[1646986226097,1.00808936,2609.5,2609.0,1.00379766]
[1646986226301,1.97392363,2609.3,2609.0,1.00379766]
[1646986226495,1.97392363,2609.3,2609.1,0.1544]
[1646986226694,1.97392363,2609.3,2609.1,0.144]
[1646986226895,1.97392363,2609.3,2609.1,2.00247647]
[1646986227596,1.97392363,2609.3,2609.2,0.1512]
[1646986227794,1.97392363,2609.3,2609.1,3.00247647]
[1646986227994,0.04635118,2609.6,2609.2,3.0]
[1646986228194,0.462,2609.6,2609.2,3.0]
[1646986228396,0.50945136,2609.6,2609.1,2.0]
[1646986228795,0.462,2609.6,2609.1,2.0]
[1646986229241,2.87286,2609.5,2609.1,2.0]
[1646986229441,2.87286,2609.5,2609.2,7.6649]
[1646986230047,2.87286,2609.5,2609.4,1.02595829]
[1646986230250,2.87286,2609.5,2609.2,7.6649]
[1646986230848,2.87286,2609.5,2609.2,1.91844]
[1646986231252,2.87286,2609.5,2609.1,1.0]
[1646986231468,2.87286,2609.5,2609.3,2.0]
[1646986231949,2.87286,2609.5,2609.4,0.1448]
[1646986232150,2.87286,2609.5,2609.4,0.1464]
[1646986232349,2.87286,2609.5,2609.4,0.152]
[1646986232547,2.87286,2609.5,2609.4,1.25087855]
[1646986232986,2.87286,2609.5,2609.4,1.25007855]
[1646986233188,2.87286,2609.5,2609.4,1.25247855]
[1646986233586,2.87286,2609.5,2609.4,1.25327855]
[1646986233787,2.87286,2609.5,2609.4,0.1496]
[1646986233989,2.87286,2609.5,2609.0,1.0]
[1646986234291,2.87286,2609.5,2608.9,0.1608]
[1646986234488,2.87286,2609.5,2609.0,0.00379751]
[1646986234890,2.87286,2609.5,2609.3,1.0]
[1646986235087,2.87286,2609.5,2609.3,1.00542526]
[1646986236390,2.87286,2609.5,2609.2,0.89002985]
[1646986236635,2.87286,2609.5,2609.3,1.0]
[1646986237035,2.89791071,2609.5,2609.3,1.0]
[1646986240242,2.89791071,2609.5,2609.3,0.9985391]
[1646986240481,2.89791071,2609.5,2609.0,1.00379771]
[1646986240883,2.89791071,2609.5,2609.2,1.0]
[1646986241081,2.89791071,2609.5,2609.2,2.06479663]
[1646986242785,2.89791071,2609.5,2609.0,0.0037977]
[1646986243588,2.89791071,2609.5,2609.0,1.0037977]
[1646986243788,2.89791071,2609.5,2609.1,1.091543]
[1646986243988,2.89791071,2609.5,2609.0,0.00379764]
[1646986244238,0.04379794,2609.3,2609.0,0.00379764]
[1646986244441,1.00175794,2609.3,2609.0,0.00379764]
[1646986244644,0.462,2609.2,2609.0,0.00379764]
[1646986244837,2.5,2609.1,2608.4,0.01519438]
[1646986245036,1.10745563,2609.0,2608.3,2.14428234]
[1646986245237,1.10745563,2609.0,2608.4,0.01519417]
[1646986245637,0.95812,2608.9,2608.4,0.01519417]
[1646986245837,2.87427,2608.8,2608.4,0.01519417]
[1646986246037,2.87427,2608.8,2608.3,2.14428234]
[1646986246237,2.87427,2608.8,2608.3,2.28828234]
[1646986246437,2.87427,2608.8,2608.3,2.14428234]
[1646986248588,2.87427,2608.8,2608.4,11.76]
[1646986248788,2.87427,2608.8,2608.6,1.0]
[1646986248987,2.87427,2608.8,2608.7,0.08690582]
[1646986249386,2.87427,2608.8,2608.6,0.1933855]
[1646986249991,2.87427,2608.8,2608.6,0.00437498]
[1646986250989,0.05382932,2608.7,2608.5,0.00580018]
[1646986251289,0.05382932,2608.7,2608.6,0.00437504]
[1646986251290,0.0909978,2608.7,2608.6,0.00437504]
[1646986252034,0.0909978,2608.7,2608.5,0.00580018]
[1646986252437,0.0909978,2608.7,2608.5,0.01017527]
[1646986253035,0.03716848,2608.7,2608.5,0.01017527]
[1646986253236,0.03716848,2608.7,2608.5,0.00580018]
[1646986253636,0.03716848,2608.7,2608.5,0.01017532]
[1646986254437,0.03716848,2608.7,2608.5,0.00580018]
[1646986254838,0.03716848,2608.7,2608.5,0.01017532]
[1646986255241,0.03716848,2608.7,2608.6,1.11659028]
[1646986255905,0.03716848,2608.7,2608.6,1.39276156]
[1646986256109,0.03716848,2608.7,2608.6,2.31509702]
[1646986258913,0.95812,2608.9,2608.7,5.0]
[1646986259137,1.91573,2609.2,2608.7,16.76]
[1646986259338,1.91573,2609.2,2608.8,0.1448]
[1646986259537,1.91573,2609.2,2608.8,0.1576]
[1646986259738,1.91573,2609.2,2609.0,1.0]
[1646986260039,1.91573,2609.2,2609.0,2.30247083]
[1646986263094,2.91573,2609.2,2609.0,2.30247083]
[1646986263891,2.91573,2609.2,2609.0,1.21366844]
[1646986265100,2.91573,2609.2,2609.0,2.0851561]
[1646986267437,2.91573,2609.2,2609.0,1.21950874]
[1646986267640,2.91573,2609.2,2609.0,0.21950874]
[1646986267840,2.91573,2609.2,2609.1,1.0]
[1646986268041,2.91573,2609.2,2608.7,1.0]
[1646986268243,2.91573,2609.2,2608.9,0.00406089]
[1646986268846,2.91573,2609.2,2608.8,0.99402197]
[1646986269246,2.91573,2609.2,2608.9,0.0040651]
[1646986269647,2.91573,2609.2,2609.0,0.5]
[1646986269846,2.91573,2609.2,2608.9,0.0040651]
[1646986270049,2.91573,2609.2,2608.8,1.0]
[1646986270245,2.91573,2609.2,2609.0,0.00467417]
[1646986271099,0.04856936,2609.1,2609.0,0.00467417]
[1646986272498,0.04856936,2609.1,2609.0,1.05220817]
[1646986273705,2.91573,2609.2,2609.0,1.05220817]
[1646986279790,3.91573,2609.2,2609.0,1.05220817]
[1646986287488,3.91573,2609.2,2609.0,1.0]
[1646986288389,3.91573,2609.2,2609.0,1.047534]
[1646986288993,3.91427813,2609.2,2609.0,1.047534]
[1646986289234,3.91427813,2609.2,2609.0,0.047534]
[1646986289437,3.91427813,2609.2,2609.0,1.047534]
[1646986293692,0.03597383,2609.1,2609.0,1.0]
[1646986309714,0.03458915,2609.1,2609.0,1.0]
[1646986315247,0.03458915,2609.1,2609.0,1.01769147]
[1646986318397,0.03458915,2609.1,2609.0,1.21137942]
[1646986319245,0.03458915,2609.1,2609.0,2.16334192]
[1646986320646,0.03458915,2609.1,2609.0,1.21137942]
[1646986320845,0.03458915,2609.1,2609.0,1.01769147]
[1646986321245,0.03458915,2609.1,2609.0,1.0]
[1646986321747,0.03458915,2609.1,2609.0,1.93994867]
[1646986324996,0.03458915,2609.1,2609.0,1.0]
[1646986325795,0.03458915,2609.1,2609.0,1.01769147]
[1646986330399,0.03458915,2609.1,2609.0,1.0]
[1646986330400,0.03346317,2609.1,2609.0,1.0]
[1646986335749,0.04534983,2609.1,2609.0,1.0]
[1646986345696,2.30707039,2609.2,2609.1,5.5]
[1646986345906,1.91576,2609.5,2609.2,5.58946198]
[1646986346096,1.2488,2610.2,2609.2,5.58946198]
[1646986346097,1.25285807,2610.2,2609.3,0.08334895]
[1646986346308,0.00405807,2610.2,2609.3,0.27374895]
[1646986346500,0.00405807,2610.2,2609.3,0.29294895]
[1646986346695,0.00405807,2610.2,2609.5,12.0853]
[1646986346898,1.91918807,2610.2,2610.1,1.06085971]
[1646986347097,6.84653147,2610.8,2610.2,0.09040389]
[1646986347098,3.01544147,2610.8,2610.2,0.09040389]
[1646986347296,0.00405851,2610.2,2610.1,2.42968844]
[1646986347498,0.00405851,2610.2,2610.1,2.26488844]
[1646986347696,0.00405851,2610.2,2610.1,2.35968049]
[1646986347896,0.00405851,2610.2,2610.1,2.34848049]
[1646986348096,0.00405851,2610.2,2610.1,2.34768049]
[1646986348298,2.09060733,2611.1,2610.1,2.34928049]
[1646986348504,0.00405871,2610.3,2610.1,1.38397792]
[1646986348700,0.00405871,2610.3,2610.2,0.1504]
[1646986348898,0.00405871,2610.3,2610.2,0.1552]
[1646986349146,0.00405871,2610.3,2610.2,0.1608]
[1646986349357,0.95748,2610.5,2610.2,0.16]
[1646986349552,0.95748,2610.5,2610.2,0.1584]
[1646986349751,0.95748,2610.5,2610.2,0.1568]
[1646986349954,0.95748,2610.5,2610.2,0.1456]
[1646986350154,0.95748,2610.5,2610.1,2.21917792]
[1646986350354,0.00722894,2610.2,2610.1,2.22121796]
[1646986350554,0.00722894,2610.2,2610.1,9.88371796]
[1646986351559,0.00722894,2610.2,2610.1,10.03491796]
[1646986351756,0.00722894,2610.2,2610.1,9.04771796]
[1646986352057,0.00722894,2610.2,2610.1,9.04931796]
[1646986352257,0.00722894,2610.2,2610.1,9.05171796]
[1646986352456,0.00722894,2610.2,2610.1,9.05651796]
[1646986352756,0.00722894,2610.2,2610.1,9.05571796]
[1646986352995,0.00722894,2610.2,2610.1,9.05251796]
[1646986353198,0.00722894,2610.2,2610.1,9.05331796]
[1646986353701,0.00722894,2610.2,2610.1,9.03971796]
[1646986353898,0.00722894,2610.2,2610.1,9.03891796]
[1646986354196,0.00722894,2610.2,2610.1,9.03811796]
[1646986354599,0.00722894,2610.2,2610.1,9.03731796]
[1646986355199,0.0043928,2610.3,2610.1,9.03731796]
[1646986355399,0.00722894,2610.4,2610.1,9.03731796]
[1646986355602,0.00722894,2610.4,2610.2,0.1448]
[1646986355799,0.00438837,2610.3,2610.2,0.1448]
[1646986356003,0.00438837,2610.3,2610.2,7.6622]
[1646986356641,0.0528433,2610.4,2610.2,7.6622]
[1646986356642,0.00722894,2610.4,2610.2,7.6622]
[1646986356942,0.01161721,2610.4,2610.2,7.6622]
[1646986357147,0.01161721,2610.4,2610.3,1.0]
[1646986357747,0.00722894,2610.4,2610.3,1.0]
[1646986357949,2.88036894,2610.4,2610.3,1.9892089]
[1646986358149,2.88036894,2610.4,2610.3,1.0]
[1646986360421,2.88036894,2610.4,2610.3,1.00238803]
[1646986363720,2.88036894,2610.4,2610.3,0.97518803]
[1646986363927,0.05592848,2610.2,2609.7,0.36349508]
[1646986364144,0.95781,2610.1,2609.5,0.1552]
[1646986364343,0.95781,2610.1,2609.7,0.6016]
[1646986364550,0.95781,2610.1,2609.7,0.748]
[1646986364743,1.05669048,2609.8,2609.7,0.6016]
[1646986364943,1.05669048,2609.8,2609.3,3.82049278]
[1646986364944,1.1075382,2609.8,2609.3,3.82049278]
[1646986365148,1.1075382,2609.8,2609.3,0.18269278]
[1646986365347,0.05144359,2609.7,2609.3,0.18269278]
[1646986365547,0.05144359,2609.7,2609.0,0.5]
[1646986365781,0.462,2609.6,2609.0,0.5]
[1646986365949,0.462,2609.6,2608.9,0.00439502]
[1646986365950,0.04598231,2609.4,2608.9,0.00439502]
[1646986366150,0.462,2609.3,2608.7,0.25]
[1646986366347,1.9161,2609.2,2608.5,1.05316438]
[1646986366747,2.79419058,2609.2,2608.5,1.05316438]
[1646986367149,0.05370725,2609.0,2608.7,0.6016]
[1646986367348,1.91635,2608.9,2608.7,0.6016]
[1646986368512,0.05216063,2608.8,2608.7,0.6016]
[1646986370510,0.05216063,2608.8,2608.6,0.00439028]
[1646986371210,2.92692063,2608.8,2608.6,0.00439033]
[1646986372248,2.92692063,2608.8,2608.5,0.8232]
[1646986372450,2.92692063,2608.8,2608.6,0.00439033]
[1646986372848,1.00258278,2608.9,2608.6,1.42919033]
[1646986373054,1.00258278,2608.9,2608.7,0.08012968]
[1646986373853,1.00258278,2608.9,2608.7,0.0845199]
[1646986374257,1.00258278,2608.9,2608.7,0.00439022]
[1646986374653,1.00258278,2608.9,2608.6,0.8232]
[1646986374853,1.91619,2608.8,2608.7,0.00424206]
[1646986375494,1.91619,2608.8,2608.7,0.09287212]
[1646986375899,1.91619,2608.8,2608.7,0.08863006]
[1646986376100,1.91619,2608.8,2608.6,1.42904211]
[1646986376698,1.91619,2608.8,2608.6,0.82744211]
[1646986377003,1.91619,2608.8,2608.6,0.8232]
[1646986377217,1.91619,2608.8,2608.7,0.6016]
[1646986377405,1.00258278,2608.9,2608.7,0.6016]
[1646986377802,0.03038823,2608.8,2608.7,0.61717057]
[1646986378206,0.03038823,2608.8,2608.7,0.58617057]
[1646986378407,0.03038823,2608.8,2608.5,0.15617003]
[1646986378605,0.03038823,2608.8,2608.6,0.00405285]
[1646986379347,0.98846823,2608.8,2608.6,0.00405285]
[1646986379552,0.98846823,2608.8,2608.5,0.15617003]
[1646986379749,0.98846823,2608.8,2608.6,0.0040529]
[1646986380750,0.98846823,2608.8,2608.2,0.07127582]
[1646986380952,0.98846823,2608.8,2608.6,0.0040529]
[1646986381955,0.98846823,2608.8,2608.5,0.5856]
[1646986382159,0.98846823,2608.8,2608.6,0.00406567]
[1646986382893,0.98846823,2608.8,2608.6,0.58966567]
[1646986383096,0.98846823,2608.8,2608.6,0.5856]
[1646986383500,1.01997664,2608.8,2608.6,0.00406567]
[1646986384299,1.01997664,2608.8,2608.3,0.07550715]
[1646986384500,1.01997664,2608.8,2608.6,0.00406567]
[1646986385199,1.02720402,2608.8,2608.6,0.00406567]
[1646986385400,2.10975916,2608.8,2608.6,0.00406567]
[1646986385602,2.10975916,2608.8,2608.3,1.07550715]
[1646986385802,2.10975916,2608.8,2608.6,0.00406481]
[1646986386402,1.02720402,2608.8,2608.6,0.00406481]
[1646986386643,1.02720402,2608.8,2608.3,1.07550715]
[1646986387045,1.02720402,2608.8,2608.6,0.00406481]
[1646986387848,1.02720402,2608.8,2608.2,0.22661347]
[1646986387849,1.02720402,2608.8,2608.3,1.0]
[1646986388250,1.02720402,2608.8,2608.6,0.00406481]
[1646986389049,1.02720402,2608.8,2608.3,1.0]
[1646986389050,1.02720402,2608.8,2608.4,4.48807137]
[1646986389253,1.02720402,2608.8,2608.5,0.07916958]
[1646986389450,1.02720402,2608.8,2608.6,0.8232]
[1646986389652,1.02720402,2608.8,2608.7,3.5]
[1646986390697,1.02720402,2608.8,2608.7,3.6464]
[1646986390899,1.02720402,2608.8,2608.7,3.6472]
[1646986391097,1.02720402,2608.8,2608.7,3.648]
[1646986391297,1.02720402,2608.8,2608.7,3.5]
[1646986391900,1.02720402,2608.8,2608.7,3.6472]
[1646986392409,1.02720402,2608.8,2608.7,3.6464]
[1646986392610,1.02720402,2608.8,2608.7,3.6472]
[1646986392804,0.03038823,2608.8,2608.7,3.6552]
[1646986393003,0.03038823,2608.8,2608.7,3.6504]
[1646986393203,0.00438852,2609.7,2608.7,11.3203]
[1646986393404,0.00438852,2609.7,2608.7,12.5188]
[1646986393602,0.00438852,2609.7,2609.1,0.81438544]
[1646986393802,0.00438852,2609.7,2609.2,3.5]
[1646986394002,0.08820511,2609.8,2609.1,0.81438544]
[1646986394003,0.07065197,2609.8,2609.1,0.81438544]
[1646986394248,0.95774,2609.5,2609.2,3.5]
[1646986394847,0.95774,2609.5,2609.3,0.8232]
[1646986396452,0.95774,2609.5,2609.3,1.0]
[1646986397251,1.08745179,2609.4,2609.3,1.0]
[1646986397652,0.95774,2609.5,2609.3,1.0]
[1646986400101,0.95774,2609.5,2609.3,1.00534178]
[1646986403352,0.03571802,2609.4,2609.3,1.00534178]
[1646986404552,0.03571802,2609.4,2609.3,0.00534178]
[1646986407902,0.07703508,2609.4,2609.3,0.00534178]
[1646986411651,0.07703508,2609.4,2608.8,0.8232]
[1646986411855,1.00938121,2609.0,2608.7,8.8644]
[1646986412056,0.95806,2608.9,2608.7,7.6667]
[1646986413703,0.95714885,2608.9,2608.7,7.6667]
[1646986419655,0.02964697,2608.8,2608.7,7.6667]
[1646986421712,0.02964697,2608.8,2608.7,7.66247818]
[1646986425154,1.02964697,2608.8,2608.7,7.66247818]
[1646986425358,4.52964697,2608.8,2608.7,7.66247818]
[1646986425556,1.02964697,2608.8,2608.7,7.66247818]
[1646986425758,4.52964697,2608.8,2608.7,7.66247818]
[1646986425959,0.04419244,2608.6,2608.5,0.00406511]
[1646986426160,3.54419244,2608.6,2608.5,0.00406511]
[1646986426359,3.54419244,2608.6,2607.9,1.29869205]
[1646986426360,0.9987457,2608.1,2607.9,1.29869205]
[1646986426565,0.9987457,2608.1,2608.0,0.01626268]
[1646986427261,0.9987457,2608.1,2607.5,0.08521456]
[1646986427262,5.5048,2608.0,2607.5,0.08521456]
[1646986427469,3.962,2607.9,2607.2,1.2091]
[1646986427662,0.04973686,2607.8,2607.2,1.2091]
[1646986427918,0.04973686,2607.8,2607.0,0.07434749]
[1646986427919,0.8747463,2607.3,2607.0,0.07434749]
[1646986428111,0.462,2607.6,2607.0,0.07434749]
[1646986429116,0.9255737,2607.3,2606.8,0.08564365]
[1646986429511,1.91771,2607.2,2606.8,0.08564365]
[1646986430213,1.91771,2607.2,2606.9,0.0043921]
[1646986431212,1.91771,2607.2,2606.5,0.2347237]
[1646986431411,1.91771,2607.2,2606.9,0.00439205]
[1646986433557,1.91771,2607.2,2606.5,0.2347237]
[1646986433757,1.91771,2607.2,2606.9,0.00439205]
[1646986434559,2.89155668,2607.1,2606.5,0.01757083]
[1646986434759,2.89155668,2607.1,2606.1,0.0858786]
[1646986434760,0.05035466,2607.0,2606.1,0.0858786]
[1646986435059,0.462,2606.9,2606.5,0.01724138]
[1646986435258,0.05255182,2606.8,2606.5,0.01724138]
[1646986435503,0.04253182,2606.8,2606.5,0.01724138]
[1646986435908,1.07176167,2606.7,2606.1,0.0858786]
[1646986437109,2.03080167,2606.7,2606.1,0.0858786]
[1646986438714,2.03080167,2606.7,2606.3,0.00439272]
[1646986439559,2.03080167,2606.7,2606.1,0.0858786]
[1646986439962,2.03080167,2606.7,2606.4,0.00439262]
[1646986440762,2.03080167,2606.7,2606.1,0.0858786]
[1646986440962,2.03080167,2606.7,2606.4,0.00439257]
[1646986442064,2.03080167,2606.7,2606.1,0.0858786]
[1646986442266,2.03080167,2606.7,2606.4,0.00439257]
[1646986443103,2.03080167,2606.7,2606.1,0.0858786]
[1646986443507,2.03080167,2606.7,2606.4,0.00426079]
[1646986444303,2.03080167,2606.7,2606.1,0.0858786]
[1646986444704,2.03080167,2606.7,2606.4,0.00426079]
[1646986445104,0.03515697,2606.6,2606.4,0.00426079]
[1646986445507,0.03515697,2606.6,2606.1,0.0858786]
[1646986445805,0.03515697,2606.6,2606.4,0.00426084]
[1646986446851,0.03515697,2606.6,2606.1,0.0858786]
[1646986447057,0.03515697,2606.6,2606.4,0.00405883]
[1646986447751,0.03515697,2606.6,2606.5,1.0]
[1646986449356,0.03515697,2606.6,2606.5,4.5]
[1646986451004,0.07116051,2606.6,2606.5,4.5]
[1646986451203,0.07116051,2606.6,2606.5,1.0]
[1646986451603,0.07116051,2606.6,2606.5,4.5]
[1646986453708,1.91725,2607.2,2606.6,17.5853]
[1646986453910,0.95856,2607.4,2606.6,17.5853]
[1646986453911,0.95856,2607.4,2606.8,0.55731942]
[1646986454151,0.95856,2607.4,2606.9,3.5]
[1646986454352,0.95856,2607.4,2607.2,1.15744778]
[1646986454553,0.00406515,2607.9,2607.3,3.5]
[1646986454760,0.00406515,2607.9,2607.3,4.54468507]
[1646986454953,0.00406515,2607.9,2607.3,4.69348507]
[1646986455152,1.91673,2608.0,2607.3,4.54468507]
[1646986455352,1.91673,2608.0,2607.3,4.92998507]
[1646986455554,0.00406583,2607.9,2607.8,1.0]
[1646986455756,0.00406583,2607.9,2607.8,1.19887123]
[1646986455954,0.00406583,2607.9,2607.8,4.69887123]
[1646986456158,6.1288,2608.8,2607.8,4.69887123]
[1646986456159,3.83351,2609.1,2607.9,5.5]
[1646986456457,0.04256415,2609.3,2608.0,3.5]
[1646986456857,1.91597,2608.9,2608.0,3.5]
[1646986457054,2.76612797,2608.9,2608.0,3.5]
[1646986457258,0.95804,2608.8,2608.0,3.5]
[1646986458112,0.95804,2608.8,2608.1,0.5]
[1646986458313,0.95804,2608.8,2608.2,3.66273305]
[1646986460015,0.95804,2608.8,2608.6,1.15360467]
[1646986460217,0.95804,2608.8,2608.7,3.5]
[1646986460615,0.95804,2608.8,2608.6,1.15360467]
[1646986461417,0.95804,2608.8,2608.7,3.57580021]
[1646986461418,0.0041314,2608.8,2608.7,3.57580021]
[1646986461653,0.0041314,2608.8,2608.7,0.07580021]
[1646986462457,1.91597,2608.9,2608.7,0.07580021]
[1646986462654,1.92010135,2608.9,2608.7,0.07580021]
[1646986463557,1.91597,2608.9,2608.7,0.07580021]
[1646986463957,1.9201013,2608.9,2608.7,0.07580021]
[1646986464859,1.91597,2608.9,2608.7,0.07580021]
[1646986465258,1.91597,2608.9,2608.7,1.0]
[1646986465259,1.92004024,2608.9,2608.7,1.0]
[1646986465507,1.92004024,2608.9,2608.8,0.08867602]
[1646986465907,1.91597,2608.9,2608.8,0.08867602]
[1646986466909,1.91597,2608.9,2608.7,1.0]
[1646986467210,1.91597,2608.9,2608.7,1.19494921]
[1646986467613,1.91597,2608.9,2608.3,0.08046698]
[1646986467614,1.91597,2608.9,2608.1,0.06327964]
[1646986468010,1.91597,2608.9,2608.1,1.06327964]
[1646986468214,1.91597,2608.9,2608.2,0.06254647]
[1646986468709,0.00407596,2608.6,2608.2,0.06254647]
[1646986469009,0.95817,2608.5,2608.2,0.06254647]
[1646986469256,0.95817,2608.5,2608.3,1.0]
[1646986469860,0.96224609,2608.5,2608.3,1.0]
[1646986470463,0.96224609,2608.5,2608.2,0.06254647]
[1646986470664,0.96224609,2608.5,2608.4,0.22174361]
[1646986470862,0.95817,2608.5,2608.4,0.07774361]
[1646986471062,0.95817,2608.5,2608.4,0.22254361]
[1646986471063,0.96224605,2608.5,2608.4,0.22254361]
[1646986471261,0.96224605,2608.5,2608.4,0.22334361]
[1646986471463,0.96224605,2608.5,2608.4,0.22254361]
[1646986471862,0.96224605,2608.5,2608.4,0.22574361]
[1646986472062,0.95817,2608.5,2608.4,0.22494361]
[1646986472465,0.95817,2608.5,2608.4,0.22414361]
[1646986472665,0.95817,2608.5,2608.4,0.07774361]
[1646986472930,0.95817,2608.5,2608.4,0.22254361]
[1646986473121,0.95817,2608.5,2608.4,0.07774361]
[1646986473720,0.95817,2608.5,2608.4,0.22254361]
[1646986473921,0.95817,2608.5,2608.4,0.22334361]
[1646986474123,0.95817,2608.5,2608.4,0.22254361]
[1646986474323,0.95817,2608.5,2608.4,0.07774361]
[1646986474523,0.95817,2608.5,2608.4,0.22174361]
[1646986474722,0.95817,2608.5,2608.4,0.22254361]
[1646986474923,0.95817,2608.5,2608.4,0.22334361]
[1646986475124,1.01502315,2608.5,2608.4,0.22254361]
[1646986475325,1.03018646,2608.5,2608.4,0.22254361]
[1646986476126,1.03018646,2608.5,2608.4,0.07774361]
[1646986477954,1.03018646,2608.5,2608.3,1.0]
[1646986478160,1.07972592,2608.5,2608.3,1.0]
[1646986478760,1.07972592,2608.5,2608.0,0.36279954]
[1646986478957,2.87462,2608.4,2608.0,0.21799954]
[1646986479557,2.87869572,2608.4,2608.0,0.16799954]
[1646986480399,0.96154094,2608.3,2608.0,0.16799954]
[1646986480604,1.9238767,2608.3,2608.0,0.16799954]
[1646986480806,1.9238767,2608.3,2608.1,1.0]
[1646986481602,1.91980094,2608.3,2608.1,1.0]
[1646986481802,0.04975353,2608.2,2608.1,1.0]
[1646986482605,3.54975353,2608.2,2608.1,1.0]
[1646986482805,0.04975353,2608.2,2608.1,1.0]
[1646986483006,0.04975353,2608.2,2607.7,0.5]
[1646986483206,0.04975353,2608.2,2607.8,0.17149034]
[1646986483207,1.07998949,2607.9,2607.8,0.17149034]
[1646986484009,0.95844,2608.0,2607.8,0.17149034]
[1646986484260,0.96251602,2608.0,2607.8,0.17149034]
[1646986485259,0.95844,2608.0,2607.8,0.17149034]
[1646986485459,0.96251606,2608.0,2607.8,0.17149034]
[1646986485660,1.12357509,2607.9,2607.8,0.17149034]
[1646986489908,0.95844,2608.0,2607.8,0.17149034]
[1646986490306,0.96251604,2608.0,2607.8,0.17149034]
[1646986491108,0.95844,2608.0,2607.8,0.17149034]
[1646986491506,0.96251607,2608.0,2607.8,0.17149034]
[1646986491753,0.07624941,2607.9,2607.8,0.17149034]
[1646986493459,0.1323522,2607.9,2607.8,0.17149034]
[1646986503008,0.1323522,2607.9,2607.6,0.536]
[1646986503209,2.0492422,2607.9,2607.6,0.69933001]
[1646986503408,0.04996068,2607.7,2607.6,0.69933001]
[1646986506511,0.04911426,2607.7,2607.6,0.69933001]
[1646986506766,2.99313941,2607.9,2607.6,0.69933001]
[1646986509169,2.99313941,2607.9,2607.8,0.71024742]
[1646986509370,2.99313941,2607.9,2607.8,1.42049484]
[1646986509773,0.06035353,2607.7,2607.4,0.00407702]
[1646986509973,1.91693,2607.6,2607.4,0.00407702]
[1646986510172,1.91693,2607.6,2607.5,7.6702]
[1646986510411,1.91693,2607.6,2607.5,7.87468017]
[1646986514021,1.91693,2607.6,2607.5,2.12326017]
[1646986514288,1.91693,2607.6,2607.5,2.29101002]
[1646986514289,3.05634758,2607.6,2607.5,2.29101002]
[1646986514487,1.91693,2607.6,2607.1,2.2451]
[1646986514689,1.91693,2607.6,2607.1,0.15715262]
[1646986516892,1.91693,2607.6,2607.1,0.30115262]
[1646986517092,1.91693,2607.6,2607.4,1.0]
[1646986517292,1.91693,2607.6,2607.4,1.16080367]
[1646986520230,0.0151436,2607.5,2607.4,1.16080367]
[1646986520427,0.0151436,2607.5,2607.4,1.06080367]
[1646986524768,0.0151436,2607.5,2607.4,1.1778132]
[1646986524969,0.0151436,2607.5,2607.4,1.3258132]
[1646986525176,0.0151436,2607.5,2607.4,1.3290132]
[1646986525420,0.0151436,2607.5,2607.4,9.0089132]
[1646986525610,0.0151436,2607.5,2607.4,9.8313132]
[1646986525909,0.03766138,2607.5,2607.4,9.8321132]
[1646986526113,0.03766138,2607.5,2607.4,10.2171132]
[1646986526312,0.03766138,2607.5,2607.4,10.2179132]
[1646986526516,0.03766138,2607.5,2607.4,18.2179132]
[1646986526716,0.03766138,2607.5,2607.4,14.2171132]
[1646986526917,0.03766138,2607.5,2607.4,10.2171132]
[1646986527116,0.03766138,2607.5,2607.4,10.2155132]
[1646986527317,0.03766138,2607.5,2607.4,10.2179132]
[1646986527517,0.03766138,2607.5,2607.4,10.2171132]
[1646986527720,0.03766138,2607.5,2607.4,9.27450367]
[1646986527916,0.03766138,2607.5,2607.4,9.26970367]
[1646986528116,0.03766138,2607.5,2607.4,8.88710367]
[1646986528318,0.03766138,2607.5,2607.4,8.87510367]
[1646986528517,0.03766138,2607.5,2607.4,8.87750367]
[1646986528720,0.03766138,2607.5,2607.4,8.73110367]
[1646986528919,0.03766138,2607.5,2607.4,8.88470367]
[1646986529164,0.03766138,2607.5,2607.4,8.88630367]
[1646986529364,0.03766138,2607.5,2607.4,8.88790367]
[1646986529564,0.03766138,2607.5,2607.4,8.89430367]
[1646986529765,0.03766138,2607.5,2607.4,8.89190367]
[1646986529964,0.03766138,2607.5,2607.4,8.89510367]
[1646986530171,0.03766138,2607.5,2607.4,8.89110367]
[1646986530376,0.03766138,2607.5,2607.4,8.89190367]
[1646986530568,0.03766138,2607.5,2607.4,8.89270367]
[1646986530770,0.03766138,2607.5,2607.4,8.89030367]
[1646986530968,0.03766138,2607.5,2607.4,8.89270367]
[1646986531369,0.03766138,2607.5,2607.4,8.89030367]
[1646986531969,0.03766138,2607.5,2607.4,8.89110367]
[1646986532171,0.03766138,2607.5,2607.4,8.89190367]
[1646986532370,0.03766138,2607.5,2607.4,8.89510367]
[1646986532572,0.03766138,2607.5,2607.4,8.89430367]
[1646986532773,0.03766138,2607.5,2607.4,9.85172367]
[1646986533026,0.03766138,2607.5,2607.4,9.85332367]
[1646986533225,0.03766138,2607.5,2607.4,9.85172367]
[1646986533423,0.03766138,2607.5,2607.4,9.85012367]
[1646986533623,0.03766138,2607.5,2607.4,9.84772367]
[1646986533826,0.03766138,2607.5,2607.4,9.84932367]
[1646986534024,0.03766138,2607.5,2607.4,9.85092367]
[1646986534225,0.03766138,2607.5,2607.4,9.85252367]
[1646986534424,0.03766138,2607.5,2607.4,21.55172367]
[1646986534625,0.03766138,2607.5,2607.4,13.85412367]
[1646986534823,0.03766138,2607.5,2607.4,9.85252367]
[1646986535025,0.03766138,2607.5,2607.4,9.84932367]
[1646986535225,0.03766138,2607.5,2607.4,9.84692367]
[1646986535424,0.03766138,2607.5,2607.4,9.84772367]
[1646986535629,0.03766138,2607.5,2607.4,9.84852367]
[1646986535824,0.03766138,2607.5,2607.4,9.84932367]
[1646986536025,0.03766138,2607.5,2607.4,9.85012367]
[1646986536426,0.03766138,2607.5,2607.4,9.85172367]
[1646986536867,0.03766138,2607.5,2607.4,9.85252367]
[1646986537468,0.03766138,2607.5,2607.4,9.85092367]
[1646986537667,0.03766138,2607.5,2607.4,9.85252367]
[1646986537869,0.03766138,2607.5,2607.4,13.85252367]
[1646986538070,0.03766138,2607.5,2607.4,9.85092367]
[1646986538276,0.03766138,2607.5,2607.4,9.85252367]